[Event "RUS-ch Blitz 2021"]
[Site "Sochi"]
[Date "2021.10.11"]
[Round "5.14"]
[White "Savitskiy, Sergey"]
[Black "Afanasiev, Nikita"]
[Result "0-1"]
[ECO "C45"]
[WhiteElo "2439"]
[BlackElo "2560"]
[Annotator "ChessBase"]
[PlyCount "78"]
[EventDate "2021.10.11"]
[EventType "blitz"]
[EventCountry "RUS"]
[SourceTitle "playchess.com"]
[Source "ChessBase"]
[SourceQuality "1"]
[TimeControl "180+2"]

1. e4 {[%emt 0:00:00]} e5 {[%emt 0:00:00]} 2. Nf3 {[%emt 0:00:00]} Nc6 {
[%emt 0:00:07]} 3. d4 {[%emt 0:00:04]} exd4 {[%emt 0:00:00]} 4. Nxd4 {[%emt 0:
00:00]} Qf6 {[%emt 0:00:03]} 5. Nb5 {[%emt 0:00:16]} Bc5 {[%emt 0:00:09]} 6.
Qe2 {[%emt 0:00:15]} Qd8 {[%emt 0:00:22]} 7. Be3 {[%emt 0:00:11]} Bxe3 {
[%emt 0:00:17]} 8. Qxe3 {[%emt 0:00:00]} a6 {[%emt 0:00:03]} 9. N5c3 {[%emt 0:
00:08]} Nge7 {[%emt 0:00:12]} 10. g3 {[%emt 0:00:07]} O-O {[%emt 0:00:12]} 11.
Bg2 {[%emt 0:00:00]} d5 {[%emt 0:00:27]} 12. exd5 {[%emt 0:00:32]} Nf5 {
[%emt 0:00:09]} 13. Qd2 {[%emt 0:00:14]} Re8+ {[%emt 0:00:00]} 14. Kf1 {
[%emt 0:00:02]} Ne5 {[%emt 0:00:11]} 15. Na3 {[%emt 0:00:24]} b5 {[%emt 0:00:
00]} 16. Ne4 {[%emt 0:00:10]} Nd6 {[%emt 0:00:16]} 17. Nxd6 {[%emt 0:00:04]}
cxd6 {[%emt 0:00:11]} 18. c3 {[%emt 0:00:04]} Bf5 {[%emt 0:00:05]} 19. h3 {
[%emt 0:00:14]} Qf6 {[%emt 0:00:07]} 20. Kg1 {[%emt 0:00:11]} Bg6 {[%emt 0:00:
21]} 21. f4 {[%emt 0:00:23]} Nd3 {[%emt 0:00:14]} 22. Kh2 {[%emt 0:00:08]} Re7
{[%emt 0:00:00]} 23. Nc2 {[%emt 0:00:04]} Nxb2 {[%emt 0:00:03]} 24. Nd4 {
[%emt 0:00:00]} Nc4 {[%emt 0:00:00]} 25. Qf2 {[%emt 0:00:06]} Be4 {[%emt 0:00:
00]} 26. Nc6 {[%emt 0:00:04]} Ree8 {[%emt 0:00:00]} 27. Nd4 {[%emt 0:00:06]}
Bxg2 {[%emt 0:00:05]} 28. Qxg2 {[%emt 0:00:00]} Re3 {[%emt 0:00:03]} 29. Rhe1 {
[%emt 0:00:08]} Rae8 {[%emt 0:00:00]} 30. Rxe3 {[%emt 0:00:02]} Rxe3 {[%emt 0:
00:00]} 31. Rc1 {[%emt 0:00:00]} h5 {[%emt 0:00:05]} 32. h4 {[%emt 0:00:00]}
Qg6 {[%emt 0:00:03]} 33. f5 {[%emt 0:00:07]} Qg4 {[%emt 0:00:01]} 34. Rc2 {
[%emt 0:00:04]} Ne5 {[%emt 0:00:09]} 35. Rf2 {[%emt 0:00:00]} Rxc3 {[%emt 0:00:
01]} 36. Rf4 {[%emt 0:00:00]} Qd1 {[%emt 0:00:02]} 37. f6 {[%emt 0:00:06]} Ng4+
{[%emt 0:00:03]} 38. Rxg4 {[%emt 0:00:00]} hxg4 {[%emt 0:00:00]} 39. Nf5 {
[%emt 0:00:03]} Rc2 {[%emt 0:00:00]} 0-1

[Event "RUS-ch Blitz 2021"]
[Site "Sochi"]
[Date "2021.10.11"]
[Round "5.15"]
[White "Samusenko, Maksim"]
[Black "Rozum, Ivan"]
[Result "0-1"]
[ECO "B11"]
[WhiteElo "2461"]
[BlackElo "2529"]
[Annotator "ChessBase"]
[PlyCount "80"]
[EventDate "2021.10.11"]
[EventType "blitz"]
[EventCountry "RUS"]
[SourceTitle "playchess.com"]
[Source "ChessBase"]
[SourceQuality "1"]
[TimeControl "180+2"]

1. e4 {[%emt 0:00:00]} c6 {[%emt 0:00:00]} 2. Nc3 {[%emt 0:00:08]} d5 {[%emt 0:
00:03]} 3. Nf3 {[%emt 0:00:00]} Bg4 {[%emt 0:00:00]} 4. h3 {[%emt 0:00:00]}
Bxf3 {[%emt 0:00:00]} 5. Qxf3 {[%emt 0:00:00]} e6 {[%emt 0:00:05]} 6. Be2 {
[%emt 0:00:00]} Nf6 {[%emt 0:00:02]} 7. O-O {[%emt 0:00:08]} Bc5 {[%emt 0:00:
00]} 8. Rd1 {[%emt 0:00:03]} Bd4 {[%emt 0:00:00]} 9. Qf4 {[%emt 0:00:02]} Bxc3
{[%emt 0:00:17]} 10. bxc3 {[%emt 0:00:07]} Nxe4 {[%emt 0:00:04]} 11. Rb1 {
[%emt 0:00:18]} b6 {[%emt 0:00:04]} 12. Ba3 {[%emt 0:00:14]} Nd7 {[%emt 0:00:
00]} 13. c4 {[%emt 0:00:13]} Qf6 {[%emt 0:00:10]} 14. Qe3 {[%emt 0:00:03]} Qg5
{[%emt 0:00:02]} 15. f4 {[%emt 0:00:02]} Qg3 {[%emt 0:00:01]} 16. Bf3 {[%emt 0:
00:00]} O-O-O {[%emt 0:00:15]} 17. Bb4 {[%emt 0:00:39]} Kc7 {[%emt 0:00:23]}
18. d3 {[%emt 0:00:07]} Nd6 {[%emt 0:00:00]} 19. Be1 {[%emt 0:00:04]} Qg6 {
[%emt 0:00:19]} 20. a4 {[%emt 0:00:06]} Rhe8 {[%emt 0:00:08]} 21. a5 {[%emt 0:
00:11]} Rb8 {[%emt 0:00:00]} 22. Bf2 {[%emt 0:00:04]} Qf6 {[%emt 0:00:18]} 23.
Qd2 {[%emt 0:00:13]} Red8 {[%emt 0:00:23]} 24. Qb4 {[%emt 0:00:07]} Qxf4 {
[%emt 0:00:08]} 25. axb6+ {[%emt 0:00:11]} axb6 {[%emt 0:00:00]} 26. Ra1 {
[%emt 0:00:08]} Rb7 {[%emt 0:00:00]} 27. Ra6 {[%emt 0:00:07]} Rdb8 {[%emt 0:00:
29]} 28. Qc3 {[%emt 0:00:13]} Ne5 {[%emt 0:00:13]} 29. Be2 {[%emt 0:00:00]}
dxc4 {[%emt 0:00:05]} 30. Bd4 {[%emt 0:00:20]} f6 {[%emt 0:00:13]} 31. Rf1 {
[%emt 0:00:00]} Qg5 {[%emt 0:00:02]} 32. dxc4 {[%emt 0:00:06]} c5 {[%emt 0:00:
06]} 33. Be3 {[%emt 0:00:00]} Qg3 {[%emt 0:00:00]} 34. Bf3 {[%emt 0:00:08]}
Nxf3+ {[%emt 0:00:06]} 35. Rxf3 {[%emt 0:00:00]} Qe5 {[%emt 0:00:00]} 36. Qb3 {
[%emt 0:00:05]} Qe4 {[%emt 0:00:03]} 37. Bf4 {[%emt 0:00:06]} e5 {[%emt 0:00:
00]} 38. Bg3 {[%emt 0:00:00]} Qxc4 {[%emt 0:00:04]} 39. Qa3 {[%emt 0:00:00]}
Nb5 {[%emt 0:00:05]} 40. Qc1 {[%emt 0:00:00]} Nd4 {[%emt 0:00:01]} 0-1

[Event "RUS-ch Blitz 2021"]
[Site "Sochi"]
[Date "2021.10.11"]
[Round "5.16"]
[White "Petrov, Nikita"]
[Black "Smirnov, Timofey"]
[Result "1-0"]
[ECO "A11"]
[WhiteElo "2539"]
[BlackElo "2409"]
[Annotator "ChessBase"]
[PlyCount "93"]
[EventDate "2021.10.11"]
[EventType "blitz"]
[EventCountry "RUS"]
[SourceTitle "playchess.com"]
[Source "ChessBase"]
[SourceQuality "1"]
[TimeControl "180+2"]

1. Nf3 {[%emt 0:00:00]} d5 {[%emt 0:00:00]} 2. c4 {[%emt 0:00:00]} c6 {[%emt 0:
00:07]} 3. e3 {[%emt 0:00:04]} Bg4 {[%emt 0:00:00]} 4. Qb3 {[%emt 0:00:05]} Qc7
{[%emt 0:00:03]} 5. cxd5 {[%emt 0:00:06]} cxd5 {[%emt 0:00:04]} 6. Nc3 {
[%emt 0:00:00]} Bxf3 {[%emt 0:00:00]} 7. gxf3 {[%emt 0:00:00]} e6 {[%emt 0:00:
01]} 8. d4 {[%emt 0:00:10]} Nc6 {[%emt 0:00:00]} 9. Bd2 {[%emt 0:00:03]} Nf6 {
[%emt 0:00:01]} 10. f4 {[%emt 0:00:03]} g6 {[%emt 0:00:13]} 11. Bd3 {[%emt 0:
00:04]} Bg7 {[%emt 0:00:14]} 12. Rc1 {[%emt 0:00:01]} O-O {[%emt 0:00:00]} 13.
O-O {[%emt 0:00:03]} Rfc8 {[%emt 0:00:28]} 14. Na4 {[%emt 0:00:25]} Ne8 {
[%emt 0:00:00]} 15. Nc5 {[%emt 0:00:12]} Nd6 {[%emt 0:00:02]} 16. Qa4 {[%emt 0:
00:04]} a6 {[%emt 0:00:22]} 17. b3 {[%emt 0:00:15]} Bf8 {[%emt 0:00:21]} 18.
Rc2 {[%emt 0:00:14]} b5 {[%emt 0:00:14]} 19. Qa3 {[%emt 0:00:00]} Nb7 {[%emt 0:
00:02]} 20. Qb2 {[%emt 0:00:22]} Nxc5 {[%emt 0:00:13]} 21. dxc5 {[%emt 0:00:00]
} Bg7 {[%emt 0:00:18]} 22. Qc1 {[%emt 0:00:01]} e5 {[%emt 0:00:08]} 23. fxe5 {
[%emt 0:00:13]} Bxe5 {[%emt 0:00:09]} 24. f4 {[%emt 0:00:10]} Bg7 {[%emt 0:00:
00]} 25. Qd1 {[%emt 0:00:03]} f5 {[%emt 0:00:07]} 26. Qf3 {[%emt 0:00:10]} Qf7
{[%emt 0:00:19]} 27. h4 {[%emt 0:00:12]} Re8 {[%emt 0:00:12]} 28. h5 {[%emt 0:
00:13]} Rad8 {[%emt 0:00:03]} 29. Kh1 {[%emt 0:00:22]} Qe6 {[%emt 0:00:04]} 30.
a4 {[%emt 0:00:04]} bxa4 {[%emt 0:00:11]} 31. bxa4 {[%emt 0:00:00]} Kf8 {
[%emt 0:00:06]} 32. Re1 {[%emt 0:00:11]} d4 {[%emt 0:00:02]} 33. e4 {[%emt 0:
00:02]} fxe4 {[%emt 0:00:02]} 34. Rxe4 {[%emt 0:00:00]} Qd7 {[%emt 0:00:02]}
35. f5 {[%emt 0:00:08]} gxf5 {[%emt 0:00:02]} 36. Rxe8+ {[%emt 0:00:06]} Rxe8 {
[%emt 0:00:02]} 37. Bxf5 {[%emt 0:00:02]} Qf7 {[%emt 0:00:01]} 38. Be4 {
[%emt 0:00:06]} Qxf3+ {[%emt 0:00:02]} 39. Bxf3 {[%emt 0:00:02]} Ne5 {[%emt 0:
00:01]} 40. Bd5 {[%emt 0:00:01]} d3 {[%emt 0:00:04]} 41. Rc1 {[%emt 0:00:00]}
Rd8 {[%emt 0:00:00]} 42. Be4 {[%emt 0:00:03]} h6 {[%emt 0:00:03]} 43. c6 {
[%emt 0:00:00]} Rc8 {[%emt 0:00:03]} 44. c7 {[%emt 0:00:00]} Ke7 {[%emt 0:00:
01]} 45. Bf5 {[%emt 0:00:04]} Nd7 {[%emt 0:00:01]} 46. Bb4+ {[%emt 0:00:00]}
Ke8 {[%emt 0:00:02]} 47. Bg6# {[%emt 0:00:03]} 1-0

[Event "RUS-ch Blitz 2021"]
[Site "Sochi"]
[Date "2021.10.11"]
[Round "5.17"]
[White "Savchenko, Boris"]
[Black "Khubukshanov, Erdem"]
[Result "1-0"]
[ECO "B33"]
[WhiteElo "2535"]
[BlackElo "2373"]
[Annotator "ChessBase"]
[PlyCount "43"]
[EventDate "2021.10.11"]
[EventType "blitz"]
[EventCountry "RUS"]
[SourceTitle "playchess.com"]
[Source "ChessBase"]
[SourceQuality "1"]
[TimeControl "180+2"]

1. e4 {[%emt 0:00:00]} c5 {[%emt 0:00:00]} 2. Nf3 {[%emt 0:00:00]} Nc6 {
[%emt 0:00:08]} 3. d4 {[%emt 0:00:02]} cxd4 {[%emt 0:00:00]} 4. Nxd4 {[%emt 0:
00:00]} Qb6 {[%emt 0:00:00]} 5. Nb3 {[%emt 0:00:07]} Nf6 {[%emt 0:00:00]} 6.
Nc3 {[%emt 0:00:00]} e6 {[%emt 0:00:03]} 7. Be3 {[%emt 0:00:00]} Qc7 {[%emt 0:
00:00]} 8. g4 {[%emt 0:00:06]} Bb4 {[%emt 0:00:00]} 9. Bg2 {[%emt 0:00:03]} d5
{[%emt 0:00:00]} 10. exd5 {[%emt 0:00:06]} Nxd5 {[%emt 0:00:03]} 11. Bxd5 {
[%emt 0:00:35]} exd5 {[%emt 0:00:02]} 12. Qxd5 {[%emt 0:00:04]} Bxg4 {[%emt 0:
00:10]} 13. Qe4+ {[%emt 0:00:07]} Be6 {[%emt 0:00:00]} 14. O-O-O {[%emt 0:00:
03]} Bxc3 {[%emt 0:00:33]} 15. bxc3 {[%emt 0:00:03]} O-O {[%emt 0:00:03]} 16.
Rhg1 {[%emt 0:00:11]} Rfe8 {[%emt 0:00:20]} 17. Rxg7+ {[%emt 0:00:33]} Kxg7 {
[%emt 0:00:08]} 18. Rg1+ {[%emt 0:00:05]} Kf8 {[%emt 0:00:23]} 19. Bc5+ {
[%emt 0:00:00]} Re7 {[%emt 0:00:02]} 20. Qxh7 {[%emt 0:00:10]} Ke8 {[%emt 0:00:
00]} 21. Rg8+ {[%emt 0:00:06]} Kd7 {[%emt 0:00:01]} 22. Qd3+ {[%emt 0:00:00]}
1-0

[Event "RUS-ch Blitz 2021"]
[Site "Sochi"]
[Date "2021.10.11"]
[Round "5.18"]
[White "Gavrilov, Oleg"]
[Black "Trushnikov, Sergey"]
[Result "0-1"]
[ECO "A40"]
[WhiteElo "2356"]
[BlackElo "2525"]
[Annotator "ChessBase"]
[PlyCount "116"]
[EventDate "2021.10.11"]
[EventType "blitz"]
[EventCountry "RUS"]
[SourceTitle "playchess.com"]
[Source "ChessBase"]
[SourceQuality "1"]
[TimeControl "180+2"]

1. d4 {[%emt 0:00:00]} g6 {[%emt 0:00:00]} 2. c4 {[%emt 0:00:08]} Bg7 {[%emt 0:
00:01]} 3. Nc3 {[%emt 0:00:00]} c5 {[%emt 0:00:00]} 4. d5 {[%emt 0:00:00]}
Bxc3+ {[%emt 0:00:00]} 5. bxc3 {[%emt 0:00:02]} f5 {[%emt 0:00:03]} 6. e4 {
[%emt 0:00:00]} fxe4 {[%emt 0:00:00]} 7. Qc2 {[%emt 0:00:00]} d6 {[%emt 0:00:
16]} 8. Ne2 {[%emt 0:00:12]} Nf6 {[%emt 0:00:05]} 9. Ng3 {[%emt 0:00:00]} Bf5 {
[%emt 0:00:09]} 10. Be2 {[%emt 0:00:18]} Nbd7 {[%emt 0:00:03]} 11. Nxf5 {
[%emt 0:00:08]} gxf5 {[%emt 0:00:00]} 12. O-O {[%emt 0:00:03]} Ne5 {[%emt 0:00:
21]} 13. Rb1 {[%emt 0:00:11]} b6 {[%emt 0:00:02]} 14. Bf4 {[%emt 0:00:04]} O-O
{[%emt 0:00:21]} 15. a4 {[%emt 0:01:09]} Qe8 {[%emt 0:00:10]} 16. a5 {[%emt 0:
00:04]} Rb8 {[%emt 0:00:00]} 17. axb6 {[%emt 0:00:00]} axb6 {[%emt 0:00:04]}
18. Bh6 {[%emt 0:00:11]} Rf7 {[%emt 0:00:07]} 19. h3 {[%emt 0:00:14]} Kh8 {
[%emt 0:00:01]} 20. Qd2 {[%emt 0:00:12]} Qg8 {[%emt 0:00:00]} 21. Kh1 {[%emt 0:
00:13]} Qg6 {[%emt 0:00:00]} 22. Qg5 {[%emt 0:00:13]} Ned7 {[%emt 0:00:41]} 23.
Ra1 {[%emt 0:00:01]} Rg8 {[%emt 0:00:00]} 24. Qxg6 {[%emt 0:00:02]} hxg6 {
[%emt 0:00:09]} 25. f4 {[%emt 0:00:20]} exf3 {[%emt 0:00:03]} 26. gxf3 {
[%emt 0:00:06]} g5 {[%emt 0:00:08]} 27. f4 {[%emt 0:00:00]} Ne4 {[%emt 0:00:13]
} 28. Kh2 {[%emt 0:00:03]} g4 {[%emt 0:00:22]} 29. hxg4 {[%emt 0:00:01]} fxg4 {
[%emt 0:00:00]} 30. Bg5 {[%emt 0:00:00]} Nxg5 {[%emt 0:00:17]} 31. fxg5 {
[%emt 0:00:00]} Rxf1 {[%emt 0:00:03]} 32. Rxf1 {[%emt 0:00:00]} Rxg5 {[%emt 0:
00:00]} 33. Kg3 {[%emt 0:00:04]} Kg7 {[%emt 0:00:00]} 34. Ra1 {[%emt 0:00:02]}
Re5 {[%emt 0:00:11]} 35. Bxg4 {[%emt 0:00:05]} Nf6 {[%emt 0:00:00]} 36. Bf3 {
[%emt 0:00:00]} Re3 {[%emt 0:00:02]} 37. Kf4 {[%emt 0:00:05]} Rxc3 {[%emt 0:00:
03]} 38. Ra4 {[%emt 0:00:00]} Nd7 {[%emt 0:00:02]} 39. Ra7 {[%emt 0:00:04]} Ne5
{[%emt 0:00:07]} 40. Be4 {[%emt 0:00:01]} Kf6 {[%emt 0:00:00]} 41. Ra8 {
[%emt 0:00:03]} Rxc4 {[%emt 0:00:02]} 42. Rf8+ {[%emt 0:00:00]} Kg7 {[%emt 0:
00:00]} 43. Re8 {[%emt 0:00:05]} Kf7 {[%emt 0:00:00]} 44. Rh8 {[%emt 0:00:00]}
b5 {[%emt 0:00:00]} 45. Rh7+ {[%emt 0:00:01]} Kf8 {[%emt 0:00:06]} 46. Kf5 {
[%emt 0:00:00]} b4 {[%emt 0:00:00]} 47. Rh8+ {[%emt 0:00:02]} Kg7 {[%emt 0:00:
04]} 48. Rb8 {[%emt 0:00:00]} Rc3 {[%emt 0:00:00]} 49. Ke6 {[%emt 0:00:04]} b3
{[%emt 0:00:03]} 50. Kxe7 {[%emt 0:00:00]} Nc4 {[%emt 0:00:01]} 51. Bf5 {
[%emt 0:00:05]} Re3+ {[%emt 0:00:03]} 52. Kd7 {[%emt 0:00:02]} b2 {[%emt 0:00:
00]} 53. Kc6 {[%emt 0:00:03]} Kf6 {[%emt 0:00:03]} 54. Bh7 {[%emt 0:00:02]} Ke5
{[%emt 0:00:02]} 55. Re8+ {[%emt 0:00:03]} Kd4 {[%emt 0:00:00]} 56. Rf8 {
[%emt 0:00:02]} Re1 {[%emt 0:00:02]} 57. Rf4+ {[%emt 0:00:02]} Kc3 {[%emt 0:00:
02]} 58. Rf3+ {[%emt 0:00:00]} Kb4 {[%emt 0:00:00]} 0-1

[Event "RUS-ch Blitz 2021"]
[Site "Sochi"]
[Date "2021.10.11"]
[Round "5.19"]
[White "Nozdrachev, Vladislav"]
[Black "Indzhiev, Aldar"]
[Result "1/2-1/2"]
[ECO "B12"]
[WhiteElo "2495"]
[BlackElo "2101"]
[Annotator "ChessBase"]
[PlyCount "66"]
[EventDate "2021.10.11"]
[EventType "blitz"]
[EventCountry "RUS"]
[SourceTitle "playchess.com"]
[Source "ChessBase"]
[SourceQuality "1"]
[TimeControl "180+2"]

1. e4 {[%emt 0:00:03]} c6 {[%emt 0:00:00]} 2. d4 {[%emt 0:00:01]} d5 {[%emt 0:
00:07]} 3. e5 {[%emt 0:00:01]} Bf5 {[%emt 0:00:00]} 4. Nf3 {[%emt 0:00:00]} e6
{[%emt 0:00:00]} 5. Be2 {[%emt 0:00:00]} Ne7 {[%emt 0:00:02]} 6. O-O {[%emt 0:
00:02]} Nd7 {[%emt 0:00:00]} 7. h3 {[%emt 0:00:11]} h6 {[%emt 0:00:04]} 8. a4 {
[%emt 0:00:05]} Bh7 {[%emt 0:00:11]} 9. a5 {[%emt 0:00:08]} a6 {[%emt 0:00:06]}
10. c4 {[%emt 0:00:22]} dxc4 {[%emt 0:00:26]} 11. Nbd2 {[%emt 0:00:07]} Nd5 {
[%emt 0:00:04]} 12. Nxc4 {[%emt 0:00:02]} Be7 {[%emt 0:00:06]} 13. Bd3 {
[%emt 0:00:08]} Bxd3 {[%emt 0:00:07]} 14. Qxd3 {[%emt 0:00:00]} O-O {[%emt 0:
00:09]} 15. Qe4 {[%emt 0:00:22]} c5 {[%emt 0:00:11]} 16. Rd1 {[%emt 0:00:05]}
cxd4 {[%emt 0:00:11]} 17. Nxd4 {[%emt 0:00:04]} Qc7 {[%emt 0:00:11]} 18. Nf5 {
[%emt 0:00:17]} exf5 {[%emt 0:00:33]} 19. Qxd5 {[%emt 0:00:00]} Rfd8 {[%emt 0:
00:00]} 20. Bf4 {[%emt 0:00:25]} Nf6 {[%emt 0:00:22]} 21. exf6 {[%emt 0:00:17]}
Qxf4 {[%emt 0:00:00]} 22. fxe7 {[%emt 0:00:33]} Rxd5 {[%emt 0:00:06]} 23. Rxd5
{[%emt 0:00:00]} Qc7 {[%emt 0:00:19]} 24. Nb6 {[%emt 0:00:04]} Re8 {[%emt 0:00:
06]} 25. Rd7 {[%emt 0:00:06]} Qe5 {[%emt 0:00:15]} 26. Nd5 {[%emt 0:00:05]} Kh7
{[%emt 0:00:00]} 27. Rd1 {[%emt 0:00:07]} Qe2 {[%emt 0:00:14]} 28. Nc3 {
[%emt 0:00:11]} Qxb2 {[%emt 0:00:01]} 29. Nd5 {[%emt 0:00:09]} Qe2 {[%emt 0:00:
07]} 30. Nf4 {[%emt 0:00:04]} Qe4 {[%emt 0:00:00]} 31. Nd5 {[%emt 0:00:02]} Qe2
{[%emt 0:00:01]} 32. Nf4 {[%emt 0:00:00]} Qe4 {[%emt 0:00:02]} 33. Nd5 {
[%emt 0:00:00]} Qe2 {[%emt 0:00:00]} 1/2-1/2

[Event "RUS-ch Blitz 2021"]
[Site "Sochi"]
[Date "2021.10.11"]
[Round "5.21"]
[White "Dudin, Gleb"]
[Black "Khegay, Dmitriy"]
[Result "1-0"]
[ECO "C41"]
[WhiteElo "2438"]
[BlackElo "2521"]
[Annotator "ChessBase"]
[PlyCount "134"]
[EventDate "2021.10.11"]
[EventType "blitz"]
[EventCountry "RUS"]
[SourceTitle "playchess.com"]
[Source "ChessBase"]
[SourceQuality "1"]
[TimeControl "180+2"]

1. d4 {[%emt 0:00:04]} d6 {[%emt 0:00:00]} 2. e4 {[%emt 0:00:00]} Nf6 {[%emt 0:
00:09]} 3. Nc3 {[%emt 0:00:01]} e5 {[%emt 0:00:00]} 4. Nf3 {[%emt 0:00:00]}
Nbd7 {[%emt 0:00:00]} 5. Bc4 {[%emt 0:00:00]} Be7 {[%emt 0:00:00]} 6. O-O {
[%emt 0:00:06]} O-O {[%emt 0:00:00]} 7. a4 {[%emt 0:00:08]} c6 {[%emt 0:00:00]}
8. h3 {[%emt 0:00:04]} a5 {[%emt 0:00:00]} 9. Re1 {[%emt 0:00:01]} Qc7 {
[%emt 0:00:08]} 10. Be3 {[%emt 0:00:04]} exd4 {[%emt 0:00:00]} 11. Nxd4 {
[%emt 0:00:13]} Ne5 {[%emt 0:00:00]} 12. Bb3 {[%emt 0:00:01]} Re8 {[%emt 0:00:
03]} 13. f4 {[%emt 0:00:19]} Ng6 {[%emt 0:00:00]} 14. Qf3 {[%emt 0:00:00]} Bd7
{[%emt 0:00:07]} 15. Rad1 {[%emt 0:00:06]} Rad8 {[%emt 0:00:00]} 16. Bf2 {
[%emt 0:00:27]} Bf8 {[%emt 0:00:16]} 17. g4 {[%emt 0:00:08]} h6 {[%emt 0:00:10]
} 18. Nf5 {[%emt 0:00:17]} Bc8 {[%emt 0:00:17]} 19. Kh1 {[%emt 0:00:09]} Be6 {
[%emt 0:00:22]} 20. Rg1 {[%emt 0:00:17]} d5 {[%emt 0:00:03]} 21. e5 {[%emt 0:
00:06]} Nd7 {[%emt 0:00:08]} 22. Nd4 {[%emt 0:00:11]} Ndxe5 {[%emt 0:00:09]}
23. fxe5 {[%emt 0:00:00]} Nxe5 {[%emt 0:00:02]} 24. Qg2 {[%emt 0:00:10]} Ng6 {
[%emt 0:00:02]} 25. Bg3 {[%emt 0:00:08]} Bd6 {[%emt 0:00:00]} 26. Nce2 {
[%emt 0:00:09]} Bc8 {[%emt 0:00:20]} 27. c3 {[%emt 0:00:00]} Qb6 {[%emt 0:00:
10]} 28. Bxd6 {[%emt 0:00:17]} Rxd6 {[%emt 0:00:00]} 29. Rgf1 {[%emt 0:00:00]}
Ne5 {[%emt 0:00:14]} 30. Ng3 {[%emt 0:00:04]} Rg6 {[%emt 0:00:24]} 31. Bc2 {
[%emt 0:00:00]} Rg5 {[%emt 0:00:03]} 32. Rde1 {[%emt 0:00:11]} Qd8 {[%emt 0:00:
00]} 33. Nf3 {[%emt 0:00:08]} Nxf3 {[%emt 0:00:06]} 34. Qxf3 {[%emt 0:00:00]}
f6 {[%emt 0:00:01]} 35. Qd3 {[%emt 0:00:00]} g6 {[%emt 0:00:09]} 36. Rxe8+ {
[%emt 0:00:07]} Qxe8 {[%emt 0:00:02]} 37. Rxf6 {[%emt 0:00:02]} Kg7 {[%emt 0:
00:04]} 38. Rf1 {[%emt 0:00:04]} h5 {[%emt 0:00:09]} 39. Nxh5+ {[%emt 0:00:06]}
Kh6 {[%emt 0:00:04]} 40. Ng3 {[%emt 0:00:03]} Qe7 {[%emt 0:00:05]} 41. Qf3 {
[%emt 0:00:04]} Kg7 {[%emt 0:00:03]} 42. Kg2 {[%emt 0:00:00]} Re5 {[%emt 0:00:
05]} 43. Rf2 {[%emt 0:00:08]} Bd7 {[%emt 0:00:01]} 44. Re2 {[%emt 0:00:01]} c5
{[%emt 0:00:08]} 45. Rxe5 {[%emt 0:00:03]} Qxe5 {[%emt 0:00:00]} 46. Qe2 {
[%emt 0:00:00]} Qd6 {[%emt 0:00:04]} 47. Qd3 {[%emt 0:00:02]} Bc6 {[%emt 0:00:
01]} 48. Kh2 {[%emt 0:00:06]} Qf6 {[%emt 0:00:00]} 49. Qe3 {[%emt 0:00:00]} d4
{[%emt 0:00:06]} 50. cxd4 {[%emt 0:00:02]} cxd4 {[%emt 0:00:00]} 51. Qe2 {
[%emt 0:00:00]} Qd6 {[%emt 0:00:04]} 52. Bd3 {[%emt 0:00:02]} Bxa4 {[%emt 0:00:
03]} 53. h4 {[%emt 0:00:05]} Bd7 {[%emt 0:00:09]} 54. Kh3 {[%emt 0:00:01]} a4 {
[%emt 0:00:04]} 55. h5 {[%emt 0:00:02]} gxh5 {[%emt 0:00:06]} 56. Nxh5+ {
[%emt 0:00:01]} Kg8 {[%emt 0:00:05]} 57. Qe4 {[%emt 0:00:04]} Qh6 {[%emt 0:00:
04]} 58. Qg6+ {[%emt 0:00:00]} Qxg6 {[%emt 0:00:01]} 59. Bxg6 {[%emt 0:00:01]}
Be6 {[%emt 0:00:02]} 60. Bc2 {[%emt 0:00:04]} b5 {[%emt 0:00:01]} 61. Nf4 {
[%emt 0:00:00]} Bd7 {[%emt 0:00:01]} 62. Ne2 {[%emt 0:00:03]} b4 {[%emt 0:00:
02]} 63. Nxd4 {[%emt 0:00:02]} Kg7 {[%emt 0:00:06]} 64. Kg3 {[%emt 0:00:00]} a3
{[%emt 0:00:02]} 65. bxa3 {[%emt 0:00:03]} bxa3 {[%emt 0:00:01]} 66. Bb3 {
[%emt 0:00:04]} Kg6 {[%emt 0:00:01]} 67. Kf4 {[%emt 0:00:01]} Kf6 {[%emt 0:00:
06]} 1-0

[Event "RUS-ch Blitz 2021"]
[Site "Sochi"]
[Date "2021.10.11"]
[Round "5.22"]
[White "Riazantsev, Alexander"]
[Black "Popov, Maksim"]
[Result "1-0"]
[ECO "D30"]
[WhiteElo "2634"]
[BlackElo "2179"]
[Annotator "ChessBase"]
[PlyCount "51"]
[EventDate "2021.10.11"]
[EventType "blitz"]
[EventCountry "RUS"]
[SourceTitle "playchess.com"]
[Source "ChessBase"]
[SourceQuality "1"]
[TimeControl "180+2"]

1. d4 {[%emt 0:00:00]} Nf6 {[%emt 0:00:00]} 2. Nf3 {[%emt 0:00:04]} e6 {
[%emt 0:00:02]} 3. c4 {[%emt 0:00:01]} d5 {[%emt 0:00:00]} 4. Bg5 {[%emt 0:00:
02]} Nbd7 {[%emt 0:00:11]} 5. e3 {[%emt 0:00:02]} c6 {[%emt 0:00:07]} 6. Nbd2 {
[%emt 0:00:11]} Bd6 {[%emt 0:00:25]} 7. Bd3 {[%emt 0:00:04]} h6 {[%emt 0:00:00]
} 8. Bh4 {[%emt 0:00:03]} O-O {[%emt 0:00:16]} 9. O-O {[%emt 0:00:00]} Qe7 {
[%emt 0:00:14]} 10. e4 {[%emt 0:00:10]} g5 {[%emt 0:00:47]} 11. Bg3 {[%emt 0:
00:33]} Bxg3 {[%emt 0:00:04]} 12. fxg3 {[%emt 0:00:02]} dxe4 {[%emt 0:00:02]}
13. Nxe4 {[%emt 0:00:01]} Nxe4 {[%emt 0:00:04]} 14. Bxe4 {[%emt 0:00:01]} f5 {
[%emt 0:00:07]} 15. Bc2 {[%emt 0:00:02]} e5 {[%emt 0:00:02]} 16. Nxe5 {[%emt 0:
00:25]} Nxe5 {[%emt 0:00:00]} 17. Re1 {[%emt 0:00:03]} Rd8 {[%emt 0:00:22]} 18.
Rxe5 {[%emt 0:00:07]} Qd6 {[%emt 0:00:00]} 19. c5 {[%emt 0:00:31]} Qxd4+ {
[%emt 0:00:24]} 20. Qxd4 {[%emt 0:00:00]} Rxd4 {[%emt 0:00:00]} 21. Re8+ {
[%emt 0:00:05]} Kf7 {[%emt 0:00:00]} 22. Rae1 {[%emt 0:00:00]} b6 {[%emt 0:00:
10]} 23. Bb3+ {[%emt 0:00:12]} Kg6 {[%emt 0:00:04]} 24. Rg8+ {[%emt 0:00:02]}
Kh5 {[%emt 0:00:13]} 25. h3 {[%emt 0:00:12]} Rd7 {[%emt 0:00:07]} 26. Bd1+ {
[%emt 0:00:09]} 1-0